bitfinex/quotes_SOLUSD_20260217
["timestamp","ask_amount","ask_price","bid_price","bid_amount"]
[1771362138720,11.72965491,85.254,85.221,1.64286774]
[1771362138924,1.64284639,85.258,85.221,1.64286774]
[1771362139828,1.64284639,85.258,85.231,1.64286774]
[1771362140004,1.64284639,85.256,85.231,1.64286774]
[1771362140406,1.64284639,85.249,85.2,2.38454437]
[1771362140625,1.64284639,85.249,85.21,2.38454437]
[1771362142219,1.64284639,85.239,85.189,15.98]
[1771362142521,1.64284639,85.219,85.18,2.38454437]
[1771362142723,1.64284639,85.199,85.171,1.64286774]
[1771362142914,1.64284639,85.199,85.162,1.64286774]
[1771362143824,2.38454437,85.19,85.162,1.64286774]
[1771362144025,1.64284639,85.189,85.162,1.64286774]
[1771362144240,1.64284639,85.187,85.155,13.38606109]
[1771362144430,1.64284639,85.187,85.155,1.64286774]
[1771362144626,1.64284639,85.179,85.147,1.64286774]
[1771362144931,1.64284639,85.169,85.139,1.64286774]
[1771362145718,1.64284639,85.169,85.13,1.64286774]
[1771362145920,1.64284639,85.161,85.13,1.64286774]
[1771362146224,11.74260216,85.16,85.131,1.64286774]
[1771362146417,20.48694967,85.16,85.131,1.64286774]
[1771362147327,1.64284639,85.155,85.13,7.10150112]
[1771362147531,1.64284639,85.159,85.131,1.64286774]
[1771362148028,11.74149915,85.168,85.141,1.64286774]
[1771362148733,11.74012068,85.178,85.151,1.64286774]
[1771362150735,11.73901814,85.186,85.151,1.64286774]
[1771362151410,11.73901814,85.186,85.153,1.64286774]
[1771362152636,1.64284639,85.185,85.153,1.64286774]
[1771362153519,18.8,85.195,85.15,7.10150112]
[1771362153520,11.73653819,85.204,85.18,7.10150112]
[1771362153722,1.64284639,85.203,85.18,7.10150112]
[1771362154028,1.64284639,85.203,85.178,1.64286774]
[1771362154831,1.64284639,85.203,85.18,7.10150112]
[1771362155925,11.73681368,85.202,85.18,7.10150112]
[1771362157034,1.64284639,85.202,85.18,7.10150112]
[1771362160634,11.73695144,85.201,85.178,1.64286774]
[1771362160828,1.64284639,85.189,85.15,7.10150112]
[1771362161435,1.64284639,85.189,85.15,8.74436886]
[1771362161626,1.64284639,85.189,85.151,1.64286774]
[1771362162623,1.64284639,85.209,85.177,1.64286774]
[1771362163120,1.64284639,85.209,85.18,7.10150112]
[1771362163316,1.64284639,85.209,85.181,1.64286774]
[1771362163742,13.37869588,85.209,85.181,1.64286774]
[1771362164440,11.73584949,85.209,85.19,7.10150112]
[1771362164642,1.55336241,85.215,85.19,7.10150112]
[1771362165243,1.55336241,85.215,85.181,1.64286774]
[1771362167138,13.28852329,85.214,85.181,1.64286774]
[1771362167642,1.55336241,85.213,85.181,1.64286774]
[1771362168827,1.55336241,85.213,85.183,1.57626602]
[1771362169550,1.55336241,85.22,85.2,2.38470083]
[1771362169736,11.73381478,85.224,85.2,3.96096685]
[1771362170426,11.73240725,85.234,85.21,2.38470083]
[1771362171339,11.73240725,85.234,85.211,1.57626602]
[1771362171647,11.73240725,85.234,85.2,2.38470083]
[1771362171648,1.55336241,85.258,85.221,1.57626602]
[1771362171822,1.55336241,85.256,85.221,1.57626602]
[1771362172029,1.55336241,85.256,85.214,1.57626602]
[1771362172248,1.55336241,85.249,85.21,2.38470083]
[1771362172626,1.55336241,85.249,85.21,3.96096685]
[1771362173039,1.59088317,85.26,85.24,2.38470083]
[1771362173336,1.49088317,85.259,85.231,1.43576386]
[1771362174028,1.49088317,85.257,85.231,1.43576386]
[1771362175321,36.51252758,85.26,85.151,102.8]
[1771362175322,1.49088317,85.255,85.151,102.8]
[1771362175527,11.72937975,85.256,85.202,1.43576386]
[1771362175528,1.49088317,85.249,85.202,1.43576386]
[1771362175845,1.49088317,85.239,85.198,1.43576386]
[1771362176749,1.49088317,85.239,85.201,1.43576386]
[1771362177246,11.73185668,85.238,85.202,11.73681368]
[1771362177450,1.49088317,85.237,85.21,7.09045393]
[1771362177749,1.49088317,85.237,85.21,8.52621779]
[1771362178054,11.73129291,85.243,85.211,1.43576386]
[1771362178735,11.73129291,85.243,85.221,1.43576386]
[1771362180736,11.73034287,85.249,85.221,1.43576386]
[1771362181155,11.73034287,85.249,85.22,7.09289503]
[1771362181156,0.1,85.26,85.241,1.43576386]
[1771362182557,0.1,85.26,85.24,7.09289503]
[1771362183267,0.1,85.26,85.24,18.82442897]
[1771362188666,1.49088317,85.268,85.221,1.43576386]
[1771362188872,11.7275915,85.269,85.231,1.43576386]
[1771362188873,1.49088317,85.265,85.231,1.43576386]
[1771362189165,11.7275915,85.269,85.25,7.09289503]
[1771362189342,1.49088317,85.269,85.25,7.09289503]
[1771362189547,11.72649131,85.277,85.25,7.09289503]
[1771362189742,41.0427196,85.277,85.241,1.43576386]
[1771362190164,41.0427196,85.277,85.25,7.09289503]
[1771362190368,41.0427196,85.277,85.25,8.52865889]
[1771362190541,41.0427196,85.277,85.251,1.43576386]
[1771362191146,41.0427196,85.277,85.241,1.43576386]
[1771362191367,41.0427196,85.277,85.242,1.43576386]
[1771362191569,1.42770883,85.276,85.242,1.43576386]
[1771362191755,11.72676634,85.275,85.242,1.43576386]
[1771362193772,1.49088317,85.274,85.242,1.43576386]
[1771362193968,1.49088317,85.272,85.242,1.43576386]
[1771362194173,1.49088317,85.269,85.242,1.43576386]
[1771362195757,11.72772904,85.268,85.242,1.43576386]
[1771362195956,1.36739965,85.267,85.242,1.43576386]
[1771362197880,1.36739965,85.265,85.235,1.38894727]
[1771362198963,1.36739965,85.259,85.22,2.38149474]
[1771362199158,1.36739965,85.249,85.212,13.12431977]
[1771362199358,1.36739965,85.249,85.213,11.7352986]
[1771362199789,1.36739965,85.247,85.213,1.38894727]
[1771362199983,41.05668168,85.248,85.2,29.34271058]
[1771362199984,1.36739965,85.239,85.206,1.38894727]
[1771362202964,1.36739965,85.229,85.192,15.84]
[1771362203172,1.36739965,85.209,85.182,11.73950172]
[1771362203372,1.36739965,85.209,85.182,13.12844899]
[1771362203600,1.36739965,85.209,85.183,1.38894727]
[1771362203899,1.36739965,85.199,85.162,11.74224926]
[1771362204060,1.36739965,85.189,85.162,11.74224926]
[1771362204661,1.36739965,85.189,85.162,13.13119653]
[1771362204857,1.36739965,85.189,85.162,1.38894727]
[1771362205062,1.36739965,85.187,85.155,1.38894727]
[1771362206483,1.36739965,85.187,85.134,15.86]
[1771362206484,1.36739965,85.169,85.137,1.38894727]
[1771362206661,1.36739965,85.159,85.13,1.38894727]
[1771362207172,1.36739965,85.157,85.13,1.38894727]
[1771362208976,1.36739965,85.157,85.131,11.74660229]
[1771362209181,1.36739965,85.157,85.11,2.58149474]
[1771362209182,1.36739965,85.178,85.141,1.38894727]
[1771362210187,1.36739965,85.192,85.161,1.38894727]
[1771362210487,1.36739965,85.189,85.161,1.38894727]
[1771362211273,1.36739965,85.187,85.161,1.38894727]
[1771362211870,1.36739965,85.179,85.144,1.38894727]
[1771362212072,1.36739965,85.187,85.151,1.38894727]
[1771362213188,1.36739965,85.187,85.16,7.10401262]
[1771362213389,1.36739965,85.195,85.162,1.38894727]
[1771362216089,1.36739965,85.195,85.16,7.10401262]
[1771362216090,11.73791581,85.194,85.164,1.38894727]
[1771362216496,13.10531546,85.194,85.164,1.38894727]
[1771362217984,13.10531546,85.194,85.163,11.7421885]
[1771362217985,1.36739965,85.203,85.171,1.38894727]
[1771362218186,1.36739965,85.199,85.172,1.38894727]
[1771362222101,18.92,85.208,85.174,1.38894727]
[1771362222306,1.36739965,85.206,85.179,1.38894727]
[1771362224806,1.33031561,85.204,85.179,1.38894727]
[1771362225309,1.33031561,85.199,85.161,1.22535601]
[1771362226306,1.33031561,85.199,85.171,1.22535601]
[1771362227105,11.7322696,85.235,85.181,1.22535601]
[1771362227402,1.33031561,85.234,85.211,1.22535601]
[1771362228406,7.10401262,85.25,85.211,1.22535601]
[1771362228407,1.33031561,85.246,85.22,7.10401262]
[1771362228586,18.92,85.245,85.221,1.22535601]
[1771362230396,20.25031561,85.245,85.221,1.22535601]
[1771362231305,11.73103092,85.244,85.221,1.22535601]
[1771362231505,13.06134653,85.244,85.221,1.22535601]
[1771362231804,1.33031561,85.243,85.221,1.22535601]
[1771362232215,1.33031561,85.243,85.221,12.9595159]
[1771362233305,1.28398292,85.261,85.231,1.28667229]
[1771362233499,18.94,85.26,85.231,1.28667229]
[1771362233702,1.28398292,85.261,85.24,3.66934356]
[1771362234019,13.0118495,85.267,85.241,1.28667229]
[1771362234342,1.28398292,85.273,85.25,3.66934356]
[1771362234517,1.28398292,85.273,85.251,1.28667229]
[1771362234820,11.72635897,85.278,85.251,1.28667229]
[1771362235806,11.72635897,85.278,85.253,1.28667229]
[1771362236207,0.1,85.28,85.26,3.66934356]
[1771362237008,0.1,85.28,85.261,1.28667229]
[1771362238692,0.1,85.29,85.271,1.28667229]
[1771362238896,11.72484142,85.289,85.271,1.28667229]
[1771362239093,1.28398292,85.288,85.263,1.28667229]
[1771362239297,1.28398292,85.288,85.256,1.28667229]
[1771362239698,1.28398292,85.279,85.246,1.28667229]
[1771362240714,7.08671816,85.27,85.239,11.7316719]
[1771362240911,1.28398292,85.269,85.236,11.7319968]
[1771362241108,1.28398292,85.259,85.236,11.7319968]
[1771362241308,1.28398292,85.259,85.229,1.28667229]
[1771362241511,1.28398292,85.257,85.229,11.73304808]
[1771362241715,11.72937975,85.256,85.23,1.28667229]
[1771362242097,1.28398292,85.249,85.223,1.28667229]
[1771362242299,1.28398292,85.249,85.225,1.28667229]
[1771362243302,1.28398292,85.274,85.241,1.28667229]
[1771362243502,0.1,85.3,85.262,1.28667229]
[1771362243709,1.28398292,85.299,85.27,7.08671816]
[1771362244218,1.28398292,85.299,85.262,15.82]
[1771362244806,1.28398292,85.299,85.27,7.08671816]
[1771362245407,1.28398292,85.299,85.26,7.08671816]
[1771362245614,1.28398292,85.297,85.261,13.01536418]
[1771362245811,1.28398292,85.297,85.262,1.28667229]
[1771362246016,1.28398292,85.297,85.27,7.08671816]
[1771362246320,1.28398292,85.297,85.262,1.28667229]
[1771362246507,1.28398292,85.297,85.261,11.72869189]
[1771362248025,1.28398292,85.297,85.27,8.37339045]
[1771362248325,1.28398292,85.297,85.28,7.08671816]
[1771362248826,1.28398292,85.297,85.27,8.37339045]
[1771362249214,1.28398292,85.295,85.261,11.72869189]
[1771362249812,1.28398292,85.289,85.256,1.28667229]
[1771362250025,1.28398292,85.289,85.261,11.72869189]
[1771362250026,13.00893497,85.289,85.261,11.72869189]
[1771362250208,1.28398292,85.288,85.261,11.72869189]
[1771362250408,1.28398292,85.288,85.26,8.37339045]
[1771362250919,11.72495205,85.289,85.245,1.28667229]
[1771362250920,1.28398292,85.279,85.245,1.28667229]
[1771362251228,1.28398292,85.279,85.25,7.08671816]
[1771362251428,1.28398292,85.279,85.244,11.73099727]
[1771362252128,1.28398292,85.277,85.25,7.08671816]
[1771362253129,1.28398292,85.277,85.244,11.73099727]
[1771362253337,1.28398292,85.277,85.25,7.08671816]
[1771362253834,1.28398292,85.277,85.244,11.73099727]
[1771362255437,1.16988761,85.275,85.25,7.08671816]
[1771362256849,1.16988761,85.273,85.25,7.08671816]
[1771362260236,1.16988761,85.271,85.25,7.08671816]
[1771362262543,1.16988761,85.282,85.26,7.08671816]
[1771362262844,1.16988761,85.282,85.252,1.2090927]
[1771362263248,1.16988761,85.282,85.26,8.29581086]
[1771362263932,1.16988761,85.282,85.261,1.2090927]
[1771362264741,1.16988761,85.282,85.262,11.72855433]
[1771362264936,1.16988761,85.289,85.263,1.2090927]
[1771362265130,1.16988761,85.294,85.263,1.2090927]
[1771362266932,1.16988761,85.292,85.264,11.72827922]
[1771362267342,1.16988761,85.292,85.265,1.2090927]
[1771362269544,1.16988761,85.292,85.27,7.08671816]
[1771362270434,1.16988761,85.292,85.266,11.72800412]
[1771362270638,1.16988761,85.292,85.267,1.2090927]
[1771362271346,0.1,85.3,85.281,1.2090927]
[1771362271551,0.1,85.3,85.283,1.2090927]
[1771362271868,11.72171817,85.312,85.291,1.2090927]
[1771362272234,1.26988761,85.31,85.29,7.08671816]
[1771362272438,0.1,85.31,85.291,1.2090927]
[1771362272754,0.1,85.31,85.297,1.2090927]
[1771362273750,0.1,85.31,85.291,1.2090927]
[1771362275648,0.1,85.31,85.292,11.72442902]
[1771362276457,0.1,85.31,85.292,12.93352172]
[1771362277758,0.1,85.31,85.294,11.7241541]
[1771362278964,0.1,85.31,85.294,12.84299024]
[1771362279345,0.1,85.31,85.295,1.11883614]
[1771362279955,0.1,85.31,85.296,11.72387919]
[1771362280752,1.22283727,85.31,85.29,11.72459028]
[1771362280958,0.1,85.31,85.291,1.11883614]
[1771362282361,0.1,85.31,85.292,11.72442902]
[1771362282661,0.1,85.31,85.293,1.11883614]
[1771362284158,0.1,85.31,85.3,2.37828434]
[1771362284754,0.1,85.31,85.3,3.59412952]
[1771362285470,0.1,85.33,85.312,1.1838695]
[1771362285686,0.1,85.33,85.317,1.1838695]
[1771362286273,0.1,85.33,85.318,11.72085609]
[1771362286577,0.1,85.33,85.32,2.37828434]
[1771362287553,0.1,85.33,85.321,11.72044397]
[1771362289674,1.22706454,85.329,85.31,2.37828434]
[1771362290050,1.22706454,85.329,85.3,2.37828434]
[1771362290571,1.22706454,85.319,85.281,11.72594129]
[1771362293661,1.22706454,85.309,85.274,11.72690386]
[1771362295572,11.72223003,85.308,85.274,11.72690386]
[1771362295760,1.22706454,85.307,85.274,11.72690386]
[1771362296448,1.22706454,85.307,85.241,41.06005325]
[1771362296654,1.22706454,85.299,85.26,2.37828434]
[1771362298152,11.7236043,85.298,85.256,41.05282912]
[1771362298456,1.22706454,85.289,85.256,41.05282912]
[1771362298653,1.22706454,85.289,85.252,11.72988795]
[1771362299657,1.22706454,85.289,85.27,2.37828434]
[1771362300254,2.37828434,85.3,85.26,3.55240739]
[1771362300453,11.72209262,85.309,85.271,1.17412305]
[1771362300664,11.72209262,85.309,85.28,2.37828434]
[1771362300853,11.72209262,85.309,85.271,1.17412305]
[1771362301373,41.02732418,85.309,85.271,1.17412305]
[1771362301783,2.37828434,85.3,85.264,1.16958393]
[1771362301960,2.38004073,85.3,85.264,1.16958393]
[1771362302278,2.38004073,85.3,85.26,2.38004073]
[1771362302279,1.1465668,85.299,85.266,1.16509695]
[1771362302864,1.1465668,85.299,85.271,1.16509695]
[1771362304163,11.72262203,85.306,85.26,2.38004073]
[1771362304164,1.1465668,85.319,85.281,1.156277]
[1771362304369,1.1465668,85.319,85.291,1.156277]
[1771362304575,0.1,85.33,85.31,2.38004073]
[1771362304770,0.1,85.33,85.311,1.156277]
[1771362305174,1.2465668,85.33,85.3,1.15194286]
[1771362305465,0.1,85.33,85.31,2.38004073]
[1771362306081,0.1,85.33,85.31,3.53198359]
[1771362306463,0.1,85.33,85.311,11.72181781]
[1771362308570,0.1,85.33,85.311,12.85321743]
[1771362308995,0.1,85.34,85.32,3.51144035]
[1771362309487,2.48004073,85.35,85.311,11.72181781]
[1771362309488,0.1,85.35,85.331,1.20549759]
[1771362311283,1.1465668,85.356,85.331,1.20549759]
[1771362311475,1.1465668,85.356,85.333,1.20549759]
[1771362312168,1.1465668,85.364,85.333,1.20549759]
[1771362312369,1.1465668,85.364,85.34,3.58553832]
[1771362312591,0.1,85.37,85.35,2.38004073]
[1771362313972,11.81371676,85.37,85.347,1.20549759]
[1771362314180,1.1465668,85.369,85.347,1.20549759]
[1771362316073,11.81371676,85.37,85.347,1.20549759]
[1771362316074,11.71399119,85.368,85.347,1.20549759]
[1771362316390,1.04705569,85.367,85.342,1.1103668]
[1771362318170,1.04705569,85.367,85.343,11.71742263]
[1771362318591,1.04705569,85.367,85.344,1.1103668]
[1771362319777,11.71426563,85.366,85.335,1.1103668]
[1771362319982,11.71426563,85.366,85.341,1.1103668]
[1771362320195,12.76132132,85.366,85.341,1.1103668]
[1771362320493,1.04705569,85.365,85.331,1.1103668]
[1771362320792,1.04705569,85.359,85.329,15.94]
[1771362320974,1.04705569,85.359,85.324,11.71997674]
[1771362321896,1.04705569,85.339,85.304,1.1103668]
[1771362323201,1.04705569,85.339,85.311,1.1103668]
[1771362323891,1.04705569,85.339,85.313,1.1103668]
[1771362324299,1.04705569,85.337,85.309,1.1103668]
[1771362324598,1.04705569,85.337,85.311,1.1103668]
[1771362326896,1.04705569,85.348,85.321,1.1103668]
[1771362327495,1.04705569,85.348,85.313,1.1103668]
[1771362329198,1.04705569,85.346,85.314,11.72140563]
[1771362329498,1.04705569,85.346,85.315,1.1103668]
[1771362330004,1.04705569,85.346,85.321,1.1103668]
[1771362330199,1.04705569,85.35,85.321,1.1103668]
[1771362330496,1.04705569,85.349,85.321,1.1103668]
[1771362332387,1.04705569,85.347,85.321,1.1103668]
[1771362334483,11.71701075,85.346,85.321,1.1103668]
[1771362334686,1.04705569,85.345,85.321,1.1103668]
[1771362336603,11.71701075,85.346,85.304,15.94]
[1771362336604,1.04705569,85.339,85.309,1.1103668]
[1771362336784,1.04705569,85.339,85.309,12.83242452]
[1771362336985,1.04705569,85.339,85.31,1.1103668]
[1771362337387,1.04705569,85.339,85.311,1.1103668]
[1771362338587,18.76,85.36,85.321,1.1103668]
[1771362338588,12.76391118,85.348,85.321,1.1103668]
[1771362338991,1.04705569,85.368,85.341,1.1103668]
[1771362341311,1.04705569,85.366,85.341,1.1103668]
[1771362342788,1.04705569,85.366,85.342,1.1103668]
[1771362342985,0.1,85.37,85.351,1.1103668]
[1771362343409,11.71187003,85.384,85.361,1.1103668]
[1771362343606,12.75892572,85.384,85.361,1.1103668]
[1771362343809,1.04705569,85.383,85.361,1.1103668]
[1771362344614,12.75898897,85.383,85.361,1.1103668]
[1771362344794,12.75898897,85.383,85.353,0.96361966]
[1771362344795,0.96821265,85.382,85.353,0.96361966]
[1771362344995,0.96821265,85.382,85.345,28.62073805]
[1771362345188,0.96821265,85.379,85.346,0.96361966]
[1771362345387,0.96821265,85.369,85.331,11.71905797]
[1771362345593,0.96821265,85.369,85.332,0.96361966]
[1771362346603,0.96821265,85.367,85.322,15.94]
[1771362346807,0.96821265,85.359,85.32,3.34366039]
[1771362347120,0.96821265,85.349,85.313,0.96361966]
[1771362347298,0.96821265,85.349,85.314,12.68502529]
[1771362347497,0.96821265,85.349,85.315,0.96361966]
[1771362348311,0.96821265,85.349,85.314,11.72140563]
[1771362348312,0.96821265,85.365,85.331,0.96361966]
[1771362348515,0.96821265,85.365,85.341,0.96361966]
[1771362348701,0.96821265,85.365,85.343,0.96361966]
[1771362348903,0.96821265,85.371,85.343,0.96361966]
[1771362349714,2.38004073,85.37,85.343,0.96361966]
[1771362350020,0.96821265,85.369,85.343,0.96361966]
[1771362350988,0.96821265,85.368,85.343,0.96361966]
[1771362351498,0.96821265,85.368,85.345,0.96361966]
[1771362352095,0.96821265,85.372,85.345,0.96361966]
[1771362353023,0.98379517,85.37,85.345,0.96361966]
[1771362353318,0.98379517,85.37,85.346,0.96601074]
[1771362354600,12.69572536,85.384,85.316,4.61729252]
[1771362354800,0.98379517,85.329,85.29,2.38004073]
[1771362355124,2.38004073,85.35,85.274,12.94]
[1771362355125,0.98379517,85.309,85.274,12.94]
[1771362355427,3.3638359,85.3,85.274,12.94]
[1771362355721,3.3638359,85.3,85.23,2.58004073]
[1771362355722,0.98379517,85.289,85.25,2.38004073]
[1771362355910,0.98379517,85.309,85.27,2.38004073]
[1771362356303,2.38004073,85.3,85.268,15.94]
[1771362356503,2.38004073,85.29,85.268,15.94]
[1771362356711,2.38004073,85.28,85.269,11.7275915]
[1771362356909,2.38004073,85.28,85.268,15.94]
[1771362358322,2.38004073,85.28,85.258,29.32251309]
[1771362358323,2.38004073,85.28,85.263,11.72837193]
[1771362359607,2.38004073,85.28,85.262,11.72855433]
[1771362360725,2.38004073,85.27,85.261,15.94]
[1771362360926,2.38004073,85.27,85.254,15.96]
[1771362361232,2.38004073,85.28,85.254,15.96]
[1771362361530,2.38004073,85.27,85.255,11.72951733]
[1771362361939,2.38004073,85.28,85.255,11.72951733]
[1771362362123,2.38004073,85.27,85.255,11.72951733]
[1771362362433,2.38004073,85.28,85.255,11.72951733]
[1771362362732,2.38004073,85.28,85.256,15.96]
[1771362363127,2.38004073,85.29,85.256,15.96]
[1771362364031,2.3806013,85.29,85.257,11.72924217]
[1771362364410,2.3806013,85.29,85.258,15.96]
[1771362365923,1.03219932,85.289,85.259,11.72896702]
[1771362366130,1.03219932,85.288,85.259,41.05138459]
[1771362366324,2.3806013,85.29,85.259,41.05138459]
[1771362367606,3.41280062,85.29,85.259,41.05138459]
[1771362368435,3.41280062,85.29,85.259,42.35138459]
[1771362369324,2.3806013,85.28,85.259,42.35138459]
[1771362369817,1.03219932,85.289,85.259,42.35138459]
[1771362370019,1.03219932,85.297,85.259,42.35138459]
[1771362370217,2.3806013,85.29,85.259,42.35138459]
[1771362370425,2.3806013,85.29,85.26,16.02]
[1771362371818,2.3806013,85.29,85.259,42.35138459]
[1771362372013,2.3806013,85.29,85.26,16.04]
[1771362372220,1.03219932,85.297,85.26,16.04]
[1771362372521,1.03219932,85.297,85.261,16.04]
[1771362372837,2.3806013,85.29,85.262,16.04]
[1771362373320,2.3806013,85.29,85.259,42.35138459]
[1771362373521,2.3806013,85.29,85.26,16.04]
[1771362373720,1.03219932,85.297,85.259,42.35138459]
[1771362373921,1.03219932,85.297,85.261,41.05042163]
[1771362374231,1.03219932,85.297,85.262,16.04]
[1771362374431,11.7228577,85.304,85.262,16.04]
[1771362374432,2.3806013,85.31,85.263,1.3]
[1771362374744,2.3806013,85.31,85.264,17.34]
[1771362374927,1.03219932,85.319,85.27,2.3806013]
[1771362375253,1.03219932,85.319,85.271,16.04]
[1771362376144,1.03219932,85.319,85.272,41.04512617]
[1771362376344,1.03219932,85.319,85.273,16.08]
[1771362376721,2.3806013,85.31,85.273,16.08]
[1771362377640,2.3806013,85.32,85.28,2.3806013]
[1771362377835,1.03219932,85.319,85.273,16.08]
[1771362378142,1.03219932,85.319,85.274,41.04416351]
[1771362378343,1.03219932,85.319,85.275,16.1]
[1771362380136,2.3806013,85.31,85.276,41.04320089]
[1771362380341,1.03219932,85.309,85.276,41.04320089]
[1771362382829,1.03219932,85.316,85.276,41.04320089]
[1771362383550,2.3806013,85.32,85.28,2.3806013]
[1771362383853,1.03219932,85.319,85.28,2.3806013]
[1771362384044,1.03219932,85.319,85.257,29.32283352]
[1771362384353,2.3806013,85.32,85.258,16.18]
[1771362384354,1.03219932,85.289,85.258,16.18]
[1771362384952,1.03219932,85.289,85.259,11.72896702]
[1771362385155,1.03219932,85.287,85.259,11.72896702]
[1771362385955,1.03219932,85.301,85.26,2.3806013]
[1771362386255,2.3806013,85.32,85.27,2.3806013]
[1771362386256,1.03219932,85.307,85.27,2.3806013]
[1771362386626,1.03219932,85.307,85.28,2.3806013]
[1771362386831,1.03219932,85.307,85.281,16.2]
[1771362387456,1.03219932,85.307,85.282,11.7258038]
[1771362388155,1.03219932,85.307,85.283,16.2]
[1771362390355,1.03219932,85.307,85.284,11.72552882]
[1771362397748,1.03219932,85.307,85.284,41.03935087]
[1771362398056,1.03219932,85.307,85.285,17.52]
[1771362399759,1.03219932,85.307,85.286,41.03838847]
[1771362399968,1.03219932,85.307,85.286,57.29838847]
[1771362401571,4.61729252,85.347,85.286,57.29838847]
[1771362401572,1.03219932,85.333,85.3,2.3806013]
[1771362401866,1.03219932,85.333,85.301,16.28]
[1771362402840,2.3806013,85.33,85.301,16.28]
[1771362403059,1.03219932,85.329,85.301,16.28]
[1771362404263,1.03219932,85.327,85.301,16.28]
[1771362404471,1.03219932,85.327,85.302,11.72305455]
[1771362404666,1.03219932,85.327,85.301,28.00316929]
[1771362404882,1.03219932,85.327,85.301,16.28]
[1771362406578,1.03219932,85.325,85.302,11.72305455]
[1771362407165,1.03219932,85.339,85.302,11.72305455]
[1771362407474,11.71821096,85.338,85.302,11.72305455]
[1771362407678,1.03219932,85.337,85.302,11.72305455]
[1771362409174,1.03219932,85.309,85.295,16.3]
[1771362409386,1.03219932,85.309,85.29,14.46728809]
[1771362409561,0.21823658,85.299,85.288,15.49948741]
[1771362410654,0.21172088,85.309,85.288,16.29244105]
[1771362410868,0.21172088,85.309,85.289,16.3]
[1771362411482,2.3806013,85.31,85.291,0.79295364]
[1771362412379,14.1012383,85.32,85.293,0.79295364]
[1771362413867,0.18639794,85.319,85.293,0.79295364]
[1771362414682,0.18024794,85.299,85.263,0.75907075]
[1771362414872,0.18024794,85.289,85.263,0.75907075]
[1771362415962,0.18024794,85.289,85.264,11.72827922]
[1771362416583,0.16769537,85.279,85.255,11.72939901]
[1771362416768,0.16769537,85.279,85.259,16.3]
[1771362418860,11.7263538,85.278,85.259,16.3]
[1771362419081,2.3806013,85.27,85.247,28.03054609]
[1771362420289,2.3806013,85.26,85.247,16.3]
[1771362420467,2.3806013,85.26,85.226,28.05350371]
[1771362420663,2.3806013,85.25,85.226,16.32]
[1771362420864,2.3806013,85.26,85.22,0.2]
[1771362420865,2.3806013,85.24,85.22,0.2]
[1771362421088,2.3806013,85.23,85.22,0.2]
[1771362422290,2.3806013,85.25,85.222,0.75945231]
[1771362423594,11.72800412,85.266,85.224,0.75945231]
[1771362423895,11.72800412,85.266,85.223,11.73392159]
[1771362423896,7.08973136,85.26,85.226,0.75945231]
[1771362424391,7.08973136,85.26,85.228,0.75945231]
[1771362425385,7.08973136,85.26,85.23,0.75945231]
[1771362425890,11.72896702,85.259,85.231,0.75945231]
[1771362427386,11.72896702,85.259,85.232,0.75945231]
[1771362428301,7.08969687,85.28,85.251,0.75945231]
[1771362428497,7.08969687,85.26,85.217,0.75945231]
[1771362428674,7.08969687,85.23,85.202,0.75945231]
[1771362428881,7.08969687,85.22,85.2,0.2]
[1771362430590,7.08969687,85.21,85.2,0.2]
[1771362431381,7.08969687,85.21,85.191,16.32]
[1771362431692,7.08969687,85.2,85.19,0.2]
[1771362434475,18.82678917,85.2,85.17,0.2]
[1771362434678,7.08969687,85.19,85.17,0.2]
[1771362436109,7.08969687,85.18,85.17,0.2]
[1771362436279,7.08969687,85.18,85.165,16.34]
[1771362436480,11.73998285,85.179,85.147,0.75945231]
[1771362436883,7.08969687,85.18,85.151,0.75945231]
[1771362438383,7.08969687,85.18,85.152,11.74370537]
[1771362438779,11.73927429,85.185,85.152,11.74370537]
[1771362438780,7.08969687,85.23,85.171,0.75945231]
[1771362438980,7.08969687,85.24,85.21,7.08969687]
[1771362439180,7.08969687,85.25,85.212,0.75945231]
[1771362439387,7.08969687,85.24,85.212,0.75945231]
[1771362439582,41.05090311,85.26,85.193,0.75945231]
[1771362439583,7.08969687,85.22,85.193,0.75945231]
[1771362443901,11.73447235,85.219,85.193,12.49745222]
[1771362444199,11.73447235,85.219,85.193,0.75945231]
[1771362444986,11.73447235,85.219,85.189,11.73858001]
[1771362444987,2.38445533,85.21,85.185,16.34]
[1771362445303,2.38445533,85.2,85.185,16.34]
[1771362445600,2.38445533,85.21,85.185,16.34]
[1771362445784,2.38445533,85.22,85.186,0.75945231]
[1771362446102,7.09644783,85.22,85.186,11.73901814]
[1771362446292,7.09644783,85.22,85.187,0.75945231]
[1771362449907,11.73447235,85.219,85.187,0.75945231]
[1771362453415,11.73382521,85.224,85.191,0.75945231]
[1771362453625,7.09644783,85.22,85.191,0.75945231]
[1771362455514,11.73382521,85.224,85.193,0.75945231]
[1771362457719,11.73309554,85.229,85.195,0.75945231]